Workbook

Sheet Чт 1 нед
A1: Рацион: ШК 11-18 лет | B1: 12 лет и старше | E1: День: | F1: четверг | I1: Школа | K1: СОШ с. Нижнеулу-Елга
D2: Неделя: | F2: 1 | I2: Возраст: | K2: 12 лет и старше
A3: № рец. | B3: Прием пищи, наименование блюда | D3: Масса порции | E3: Пищевые вещества (г) | H3: Энерге- тическая ценность (ккал) | I3: Витамины (мг) | M3: Минеральные вещества (мг)
E4: Б | F4: Ж | G4: У | I4: B1 | J4: C | K4: A | L4: E | M4: Ca | N4: P | O4: Mg | P4: Fe
A5: 1 | B5: 2 | D5: 3 | E5: 4 | F5: 5 | G5: 6 | H5: 7 | I5: 8 | J5: 9 | K5: 10 | L5: 11 | M5: 12 | N5: 13 | O5: 14 | P5: 15
A6: Завтрак
A7: 2.11 | B7: Салат из белокочанной капусты с морковью | D7: 100 | E7: 2.3 | F7: 5.13 | G7: 11.68 | H7: 103.53 | I7: 0.05 | J7: 51.85 | K7: 403.38 | L7: 2.4 | M7: 63.46 | N7: 46.13 | O7: 25.9 | P7: 0.86
A8: 131.81 | B8: Плов из мяса птицы (филе) | D8: 200 | E8: 16,9 | F8: 18.5 | G8: 30.3 | H8: 296 | I8: 0,12 | J8: 4.4 | K8: 275,6 | L8: 3.58 | M8: 24.9 | N8: 203.05 | O8: 46.98 | P8: 1.67
A9: 282.11 | B9: Чай витаминизированный | D9: 200 | G9: 9.7 | H9: 39 | I9: 0.15 | J9: 10
A10: 1,1 | B10: Хлеб пшеничный обогащенный витаминами для детского питания | D10: 30 | E10: 2,4 | F10: 0,3 | G10: 16,5 | H10: 78 | I10: 0,1 | L10: 0,45 | M10: 6 | N10: 19,5 | O10: 4,2 | P10: 0,75
A11: 1,2 | B11: Хлеб ржано-пшеничный для детского питания | D11: 30 | E11: 2.40 | F11: 0,3 | G11: 13,8 | H11: 66 | I11: 0.12 | L11: 0,51 | M11: 8,7 | N11: 39 | O11: 12,6 | P11: 0,9
A12: Итого за Завтрак суммарная масса порции: 560 | E12: =E7+E8+E9+E11+E10 -> 24.00 | F12: =F7+F8+F9+F11+F10 -> 24.23 | G12: =G7+G8+G9+G11+G10 -> 81.98 | H12: =H7+H8+H9+H11+H10 -> 582.53 | I12: =I7+I8+I9+I11+I10 -> 0.54 | J12: =J7+J8+J9+J11+J10 -> 66.25 | K12: =K7+K8+K9+K11+K10 -> 678.98 | L12: =L7+L8+L9+L11+L10 -> 6.94 | M12: =M7+M8+M9+M11+M10 -> 103.06 | N12: =N7+N8+N9+N11+N10 -> 307.68 | O12: =O7+O8+O9+O11+O10 -> 89.68 | P12: =P7+P8+P9+P11+P10 -> 4.18
A13: Обед
A14: 17\5 | B14: Свекла отварная порционная | D14: 100 | E14: 1.75 | F14: 0.13 | G14: 10 | H14: 48.16 | J14: 5 | M14: 20.7 | N14: 46.6 | O14: 23.3 | P14: 1.5
A15: 53.05 | B15: Щи из свежей капусты со сметаной | D15: 250/10 | E15: 2.03 | F15: 5.7 | G15: 9.11 | H15: 96.86 | I15: 0.05 | J15: 24.04 | K15: 172.62 | L15: 1.55 | M15: 37.98 | N15: 41.52 | O15: 17.16 | P15: 0.62
A16: 38\83 | B16: Пельмени отварные | D16: 200 | E16: 20 | F16: 20 | G16: 38.2 | H16: 399 | M16: 36 | N16: 85 | O16: 1
A17: 294.01 | B17: Компот из свежих плодов | D17: 200 | E17: 0.16 | F17: 0.16 | G17: 18.89 | H17: 68 | I17: 0.01 | J17: 4 | K17: 2 | L17: 0.08 | M17: 6.85 | N17: 4.4 | O17: 3.6 | P17: 0.93
A18: 420.02 | B18: Хлеб пшеничный обогащенный витаминами для детского питания | D18: 40 | E18: 3.2 | F18: 0.4 | G18: 22 | H18: 104 | I18: 0.14 | L18: 0.6 | M18: 8 | N18: 26 | O18: 5.6 | P18: 1
A19: 1,2 | B19: Хлеб ржано-пшеничный для детского питания | D19: 30 | E19: 2.40 | F19: 0,3 | G19: 13,8 | H19: 66 | I19: 0.12 | L19: 0,51 | M19: 8,7 | N19: 39 | O19: 12,6 | P19: 0,9
A20: Итого за Обед суммарная масса порции: 830 | E20: =E15+E16+E17+E18+E19+E14 -> 29.54 | F20: =F15+F16+F17+F18+F19+F14 -> 26.69 | G20: =G15+G16+G17+G18+G19+G14 -> 112 | H20: =H15+H16+H17+H18+H19+H14 -> 782.02 | I20: =I15+I16+I17+I18+I19+I14 -> 0.32 | J20: =J15+J16+J17+J18+J19+J14 -> 33.04 | K20: =K15+K16+K17+K18+K19+K14 -> 174.62 | L20: =L15+L16+L17+L18+L19+L14 -> 2.74 | M20: =M15+M16+M17+M18+M19+M14 -> 118.23 | N20: =N15+N16+N17+N18+N19+N14 -> 242.52 | O20: =O15+O16+O17+O18+O19+O14 -> 63.26 | P20: =P15+P16+P17+P18+P19+P14 -> 4.95
A21: Итого за день | E21: =E12+E20 -> 53.54 | F21: =F12+F20 -> 50.92 | G21: =G12+G20 -> 193.98 | H21: =H12+H20 -> 1364.55 | I21: =I12+I20 -> 0.86 | J21: =J12+J20 -> 99.29 | K21: =K12+K20 -> 853.6 | L21: =L12+L20 -> 9.68 | M21: =M12+M20 -> 221.29 | N21: =N12+N20 -> 550.2 | O21: =O12+O20 -> 152.94 | P21: =P12+P20 -> 9.13
